[Event "CZE-ch Youth B14 2022"]
[Site "Luhacovice"]
[Date "2022.03.13"]
[Round "2.2"]
[White "Hladky, Tadeas"]
[Black "Tesar, Jakub"]
[Result "1-0"]
[ECO "C07"]
[WhiteElo "2029"]
[BlackElo "1660"]
[Annotator "NA"]
[PlyCount "89"]
[EventDate "2022.03.12"]
[EventType "swiss"]
[EventCountry "CZE"]
[SourceTitle "playchess.com"]
[Source "ChessBase"]
[SourceQuality "1"]
[TimeControl "40/5400+30:1800+30"]

1. e4 {[%emt 0:00:05]} e6 {[%emt 0:00:10]} 2. d4 {[%emt 0:00:10]} d5 {[%emt 0:00:09]} 3. Nd2 {[%emt 0:00:36]} c5 {[%emt 0:00:11]} 4. exd5 {[%emt 0:00:48]} Qxd5 {[%emt 0:00:17]} 5. Ngf3 {[%emt 0:01:58]} cxd4 {[%emt 0:00:19]} 6. Bc4 {[%emt 0:01:44]} Qc5 {[%emt 0:00:23]} 7. Qe2 {[%emt 0:02:09]} Nc6 {[%emt 0:00:27]} 8. Nb3 {[%emt 0:04:05]} Qb6 {[%emt 0:00:20]} 9. O-O $1 {[%emt 0:03:52]} Be7 {[%emt 0:00:57]} 10. Rd1 {[%emt 0:03:56]} Bf6 {[%emt 0:00:20]} 11. a4 {[%emt 0:02:08]} Nge7 {[%emt 0:00:18]} 12. a5 {[%emt 0:02:28]} Qc7 {[%emt 0:00:26]} 13. Nfxd4 {[%emt 0:00:46]} Nxd4 {[%emt 0:00:17]} 14. Nxd4 {[%emt 0:00:08]} a6 $1 {[%emt 0:00:17]} 15. Be3 {[%emt 0:09:11]} O-O $14 {[%emt 0:03:29]} 16. c3 {[%emt 0:03:26]} Bd7 {[%emt 0:06:31]} 17. Nf3 {[%emt 0:01:31]} Bc6 {[%emt 0:07:37]} 18. Bb6 {[%emt 0:02:14]} Qf4 {[%emt 0:11:58]} 19. Nd4 {[%emt 0:01:10]} Bd5 {[%emt 0:03:53]} 20. Bxd5 {[%emt 0:01:33]} exd5 {[%emt 0:06:57]} 21. g3 {[%emt 0:05:44]} Qe4 {[%emt 0:12:24]} 22. Qxe4 {[%emt 0:04:48]} dxe4 {[%emt 0:00:09]} 23. Re1 {[%emt 0:00:09]} Nd5 {[%emt 0:00:36]} 24. Rxe4 {[%emt 0:01:46]} Nxb6 25. axb6 {[%emt 0:00:19]} Rad8 {[%emt 0:09:31]} 26. Ra4 {[%emt 0:00:44]} Rd6 {[%emt 0:06:41]} 27. Rb4 {[%emt 0:00:33]} g6 {[%emt 0:02:56]} 28. Nb3 {[%emt 0:02:19]} Rc8 {[%emt 0:05:45]} 29. Na5 {[%emt 0:02:23]} Rd7 {[%emt 0:00:10]} 30. Rbc4 {[%emt 0:13:12]} Rxc4 {[%emt 0:01:59]} 31. Rxc4 {[%emt 0:00:05]} Rd6 {[%emt 0:09:13]} 32. Rc8+ {[%emt 0:01:29]} Kg7 {[%emt 0:00:08]} 33. Nc4 {[%emt 0:00:35]} Rd7 {[%emt 0:08:24]} 34. Rc7 {[%emt 0:01:09]} Re7 {[%emt 0:00:28]} 35. Nd6 {[%emt 0:03:37]} Re6 {[%emt 0:00:45]} 36. Rxf7+ {[%emt 0:02:54]} Kg8 {[%emt 0:00:09]} 37. Rd7 {[%emt 0:00:06]} Be7 {[%emt 0:03:35]} 38. Nc8 {[%emt 0:02:07]} Bc5 {[%emt 0:00:41]} 39. Rxb7 {[%emt 0:00:36]} Re1+ {[%emt 0:00:22]} 40. Kg2 {[%emt 0:00:04]} Re2 {[%emt 0:00:10]} 41. Rc7 {[%emt 0:34:12]} Bxf2 {[%emt 0:30:39]} 42. Kf3 {[%emt 0:00:10]} Rxb2 {[%emt 0:00:10]} 43. b7 {[%emt 0:00:07]} Bg1 {[%emt 0:00:00]} 44. Ne7+ {[%emt 0:00:00]} Kf8 {[%emt 0:00:00]} 45. Nc6 {[%emt 0:00:00]} 1-0

[Event "CZE-ch Youth B14 2022"]
[Site "Luhacovice"]
[Date "2022.03.13"]
[Round "2.3"]
[White "Kubin, Tomas Daniel"]
[Black "Buchta, Bartolomej"]
[Result "1/2-1/2"]
[ECO "B85"]
[WhiteElo "1666"]
[BlackElo "1901"]
[Annotator "NA"]
[PlyCount "118"]
[EventDate "2022.03.12"]
[EventType "swiss"]
[EventCountry "CZE"]
[SourceTitle "playchess.com"]
[Source "ChessBase"]
[SourceQuality "1"]
[TimeControl "40/5400+30:1800+30"]

1. e4 {[%emt 0:00:04]} c5 {[%emt 0:00:08]} 2. Nf3 {[%emt 0:00:09]} d6 {[%emt 0:00:05]} 3. d4 {[%emt 0:00:08]} cxd4 {[%emt 0:00:05]} 4. Nxd4 {[%emt 0:00:08]} Nf6 {[%emt 0:00:07]} 5. Nc3 {[%emt 0:00:08]} a6 {[%emt 0:00:04]} 6. Be2 {[%emt 0:00:15]} e6 {[%emt 0:00:28]} 7. O-O {[%emt 0:00:30]} Qc7 {[%emt 0:00:23]} 8. a4 {[%emt 0:01:07]} b6 {[%emt 0:00:10]} 9. f4 {[%emt 0:00:46]} Bb7 {[%emt 0:00:11]} 10. Bf3 {[%emt 0:00:22]} Be7 {[%emt 0:00:24]} 11. Qe1 {[%emt 0:17:46]} O-O {[%emt 0:01:17]} 12. Qg3 {[%emt 0:01:45]} Kh8 {[%emt 0:01:08]} 13. Nb3 $11 {[%emt 0:09:41]} Nbd7 {[%emt 0:10:18]} 14. Be3 {[%emt 0:02:58]} e5 {[%emt 0:04:56]} 15. fxe5 {[%emt 0:10:01]} Nxe5 {[%emt 0:00:07]} 16. Bd4 {[%emt 0:00:51]} Nfd7 {[%emt 0:03:19]} 17. Rf2 {[%emt 0:10:07]} Bf6 {[%emt 0:04:54]} 18. Nd5 {[%emt 0:02:24]} Bxd5 {[%emt 0:00:10]} 19. exd5 {[%emt 0:00:08]} Nxf3+ {[%emt 0:04:10]} 20. Qxf3 {[%emt 0:00:34]} Ne5 {[%emt 0:01:24]} 21. Qg3 {[%emt 0:06:08]} b5 {[%emt 0:08:21]} 22. axb5 {[%emt 0:05:38]} axb5 {[%emt 0:05:26]} 23. Rd1 {[%emt 0:00:14]} Ra4 {[%emt 0:02:03]} 24. Rxf6 {[%emt 0:13:39]} gxf6 {[%emt 0:09:47]} 25. Qf2 {[%emt 0:01:05]} Qe7 {[%emt 0:03:04]} 26. Rf1 {[%emt 0:00:40]} Rg8 {[%emt 0:02:26]} 27. Qxf6+ {[%emt 0:02:37]} Qxf6 {[%emt 0:00:33]} 28. Rxf6 {[%emt 0:00:05]} Rg7 {[%emt 0:04:35]} 29. Kf1 {[%emt 0:00:40]} Rg4 {[%emt 0:20:09]} 30. c3 {[%emt 0:05:16]} Ra2 {[%emt 0:00:09]} 31. Rxd6 {[%emt 0:01:04]} Rf4+ {[%emt 0:00:05]} 32. Ke1 {[%emt 0:01:10]} f6 {[%emt 0:00:05]} 33. Rxf6 {[%emt 0:02:00]} Rxf6 {[%emt 0:00:04]} 34. Bxe5 {[%emt 0:00:04]} Kg7 {[%emt 0:00:30]} 35. Nd4 {[%emt 0:03:13]} Rxb2 {[%emt 0:03:02]} 36. d6 {[%emt 0:03:02]} Kg6 {[%emt 0:00:18]} 37. d7 {[%emt 0:01:36]} Rf8 {[%emt 0:05:38]} 38. Ne6 {[%emt 0:00:08]} Ra8 {[%emt 0:01:04]} 39. d8=Q {[%emt 0:00:54]} Rxd8 {[%emt 0:00:10]} 40. Nxd8 {[%emt 0:00:04]} Rxg2 {[%emt 0:00:07]} 41. Nc6 {[%emt 0:04:23]} Kf5 {[%emt 0:03:28]} 42. Bg3 {[%emt 0:02:45]} Ke4 {[%emt 0:02:08]} 43. Nd4 {[%emt 0:03:50]} Rb2 {[%emt 0:03:11]} 44. Kd1 {[%emt 0:07:40]} b4 {[%emt 0:05:40]} 45. Ne2 {[%emt 0:09:36]} b3 {[%emt 0:02:32]} 46. Nd4 {[%emt 0:02:23]} Kd3 {[%emt 0:02:29]} 47. Kc1 {[%emt 0:00:37]} Rg2 {[%emt 0:01:27]} 48. Nxb3 {[%emt 0:01:59]} Kxc3 {[%emt 0:00:43]} 49. Kd1 {[%emt 0:00:24]} Kxb3 {[%emt 0:00:16]} 50. Ke1 {[%emt 0:00:12]} Kc3 {[%emt 0:00:28]} 51. Kf1 {[%emt 0:00:05]} Ra2 {[%emt 0:00:11]} 52. Bf2 {[%emt 0:00:42]} Kd3 {[%emt 0:00:19]} 53. Kg2 {[%emt 0:00:56]} Ke4 {[%emt 0:02:22]} 54. Kg3 {[%emt 0:00:48]} h5 {[%emt 0:01:22]} 55. Bc5 {[%emt 0:01:05]} h4+ {[%emt 0:01:26]} 56. Kh3 {[%emt 0:00:48]} Kf4 {[%emt 0:02:03]} 57. Bd6+ {[%emt 0:00:15]} Kg5 {[%emt 0:00:54]} 58. Be7+ {[%emt 0:00:13]} Kf4 {[%emt 0:00:11]} 59. Bd6+ {[%emt 0:00:17]} Kf5 {[%emt 0:00:22]} 1/2-1/2

[Event "CZE-ch Youth B14 2022"]
[Site "Luhacovice"]
[Date "2022.03.13"]
[Round "2.4"]
[White "Zrubek, Dan"]
[Black "Fizer, Marek"]
[Result "0-1"]
[ECO "B56"]
[WhiteElo "1478"]
[BlackElo "1876"]
[Annotator "NA"]
[PlyCount "68"]
[EventDate "2022.03.12"]
[EventType "swiss"]
[EventCountry "CZE"]
[SourceTitle "playchess.com"]
[Source "ChessBase"]
[SourceQuality "1"]
[TimeControl "40/5400+30:1800+30"]

1. e4 {[%emt 0:00:03]} c5 {[%emt 0:00:07]} 2. Nf3 {[%emt 0:00:04]} d6 {[%emt 0:00:09]} 3. d4 {[%emt 0:00:16]} cxd4 {[%emt 0:00:10]} 4. Nxd4 {[%emt 0:00:07]} Nf6 {[%emt 0:00:12]} 5. Nc3 {[%emt 0:00:20]} Nc6 {[%emt 0:00:18]} 6. Be3 {[%emt 0:00:57]} e5 {[%emt 0:00:10]} 7. Nde2 {[%emt 0:03:01]} Be7 {[%emt 0:01:54]} 8. g3 {[%emt 0:02:58]} Ng4 {[%emt 0:06:37]} 9. Nd5 {[%emt 0:04:31]} Nxe3 {[%emt 0:02:18]} 10. Nxe3 {[%emt 0:01:17]} O-O {[%emt 0:02:28]} 11. Bg2 {[%emt 0:04:26]} (11. h4 $14) 11... Be6 {[%emt 0:03:36]} 12. Nc3 $11 {[%emt 0:03:39]} Qb6 {[%emt 0:05:08]} 13. Rb1 {[%emt 0:04:56]} Bg5 {[%emt 0:05:03]} 14. Ned5 {[%emt 0:16:01]} Bxd5 {[%emt 0:00:13]} 15. Nxd5 {[%emt 0:01:55]} Qa5+ {[%emt 0:00:25]} 16. Nc3 {[%emt 0:10:36]} Nd4 {[%emt 0:02:44]} 17. O-O {[%emt 0:03:03]} Rac8 {[%emt 0:06:00]} 18. f4 {[%emt 0:02:23]} Bd8 {[%emt 0:00:35]} 19. Rc1 {[%emt 0:01:36]} Qb6 {[%emt 0:02:13]} 20. Na4 {[%emt 0:04:30]} Qb5 {[%emt 0:02:35]} 21. b3 {[%emt 0:15:24]} Ne2+ {[%emt 0:00:28]} 22. Kh1 {[%emt 0:00:08]} Nxc1 {[%emt 0:00:17]} 23. Qxc1 {[%emt 0:01:32]} Qe2 {[%emt 0:00:18]} 24. c4 {[%emt 0:02:14]} Qxa2 {[%emt 0:00:22]} 25. Qd1 {[%emt 0:00:49]} Ba5 {[%emt 0:06:06]} 26. Rf3 {[%emt 0:02:12]} b5 {[%emt 0:02:58]} 27. cxb5 {[%emt 0:06:07]} Rc2 {[%emt 0:00:35]} 28. Qg1 {[%emt 0:02:07]} Rfc8 {[%emt 0:04:28]} 29. Bh3 {[%emt 0:02:29]} Rc1 {[%emt 0:02:20]} 30. Bf1 {[%emt 0:01:36]} R8c2 {[%emt 0:01:08]} 31. fxe5 {[%emt 0:01:34]} dxe5 {[%emt 0:00:32]} 32. h3 {[%emt 0:00:19]} h6 {[%emt 0:02:10]} 33. g4 {[%emt 0:00:25]} Bd2 {[%emt 0:01:27]} 34. Qxa7 {[%emt 0:02:01]} Bf4 {[%emt 0:00:24]} 0-1

[Event "CZE-ch Youth B14 2022"]
[Site "Luhacovice"]
[Date "2022.03.13"]
[Round "2.5"]
[White "Siles, Jan"]
[Black "Babula, Matej"]
[Result "0-1"]
[ECO "B43"]
[WhiteElo "1548"]
[BlackElo "1753"]
[Annotator "NA"]
[PlyCount "78"]
[EventDate "2022.03.12"]
[EventType "swiss"]
[EventCountry "CZE"]
[SourceTitle "playchess.com"]
[Source "ChessBase"]
[SourceQuality "1"]
[TimeControl "40/5400+30:1800+30"]

1. e4 {[%emt 0:00:07]} c5 {[%emt 0:00:10]} 2. Nf3 {[%emt 0:00:10]} e6 {[%emt 0:00:06]} 3. d4 {[%emt 0:00:29]} cxd4 {[%emt 0:00:03]} 4. Nxd4 {[%emt 0:00:11]} a6 {[%emt 0:00:05]} 5. Nc3 {[%emt 0:01:02]} Qc7 {[%emt 0:00:15]} 6. Be2 {[%emt 0:01:25]} b5 {[%emt 0:00:33]} 7. a3 {[%emt 0:01:25]} Bb7 {[%emt 0:01:07]} 8. O-O {[%emt 0:03:59]} Nc6 {[%emt 0:02:05]} 9. Be3 {[%emt 0:04:14]} Nf6 {[%emt 0:03:11]} 10. f4 {[%emt 0:04:49]} Bc5 {[%emt 0:19:03]} 11. e5 {[%emt 0:10:30]} Nxd4 {[%emt 0:00:19]} 12. Bxd4 {[%emt 0:00:07]} Ne4 {[%emt 0:00:30]} 13. Nxe4 {[%emt 0:05:11]} Bxe4 {[%emt 0:00:18]} 14. c3 {[%emt 0:00:14]} d6 {[%emt 0:08:20]} 15. Kh1 {[%emt 0:15:53]} Qc6 {[%emt 0:08:46]} 16. Bf3 {[%emt 0:00:53]} Bxf3 {[%emt 0:00:24]} 17. Rxf3 {[%emt 0:03:41]} Bxd4 {[%emt 0:04:20]} 18. Qxd4 {[%emt 0:00:43]} dxe5 {[%emt 0:00:52]} 19. Qxe5 {[%emt 0:02:13]} O-O {[%emt 0:03:32]} 20. Rd1 {[%emt 0:08:22]} Rad8 {[%emt 0:02:00]} 21. Rxd8 {[%emt 0:01:52]} Rxd8 {[%emt 0:00:22]} 22. Rd3 {[%emt 0:00:51]} Qb6 {[%emt 0:10:22]} 23. Qe3 {[%emt 0:07:31]} Rxd3 {[%emt 0:00:51]} 24. Qxb6 {[%emt 0:00:16]} Rd1+ {[%emt 0:00:04]} 25. Qg1 {[%emt 0:00:07]} Rxg1+ {[%emt 0:00:03]} 26. Kxg1 {[%emt 0:00:07]} Kf8 {[%emt 0:00:34]} 27. Kf2 {[%emt 0:00:12]} Ke7 {[%emt 0:00:57]} 28. Ke3 {[%emt 0:01:02]} Kd6 {[%emt 0:00:43]} 29. Kd4 {[%emt 0:01:19]} f6 {[%emt 0:01:45]} 30. b4 {[%emt 0:02:17]} e5+ {[%emt 0:04:20]} 31. fxe5+ {[%emt 0:02:08]} fxe5+ {[%emt 0:00:04]} 32. Ke4 {[%emt 0:00:19]} Ke6 {[%emt 0:01:37]} 33. g4 {[%emt 0:12:36]} g5 {[%emt 0:01:42]} 34. Kd3 {[%emt 0:02:18]} Kd5 {[%emt 0:01:00]} 35. Kc2 {[%emt 0:00:28]} Ke4 {[%emt 0:03:56]} 36. Kd2 {[%emt 0:01:50]} Kf3 {[%emt 0:02:31]} 37. c4 {[%emt 0:03:07]} bxc4 {[%emt 0:00:22]} 38. a4 {[%emt 0:00:08]} e4 {[%emt 0:06:10]} 39. b5 {[%emt 0:01:17]} e3+ {[%emt 0:00:08]} 0-1

[Event "CZE-ch Youth B14 2022"]
[Site "Luhacovice"]
[Date "2022.03.13"]
[Round "2.6"]
[White "Brozka, Karel"]
[Black "Sigut, Ondrej"]
[Result "1-0"]
[ECO "D91"]
[WhiteElo "2125"]
[BlackElo "1536"]
[Annotator "NA"]
[PlyCount "59"]
[EventDate "2022.03.12"]
[EventType "swiss"]
[EventCountry "CZE"]
[SourceTitle "playchess.com"]
[Source "ChessBase"]
[SourceQuality "1"]
[TimeControl "40/5400+30:1800+30"]

1. d4 {[%emt 0:00:07]} Nf6 {[%emt 0:00:08]} 2. c4 {[%emt 0:00:24]} g6 {[%emt 0:00:07]} 3. Nc3 {[%emt 0:00:09]} d5 {[%emt 0:00:10]} 4. Nf3 {[%emt 0:00:41]} Bg7 {[%emt 0:00:47]} 5. Bg5 {[%emt 0:00:44]} dxc4 {[%emt 0:01:49]} 6. e4 {[%emt 0:05:49]} c5 {[%emt 0:03:50]} 7. d5 {[%emt 0:02:18]} h6 {[%emt 0:00:55]} (7... b5 $5) 8. Bxf6 {[%emt 0:17:48]} Bxf6 {[%emt 0:00:19]} 9. e5 {[%emt 0:00:33]} Bg7 {[%emt 0:00:18]} 10. Qa4+ {[%emt 0:02:07]} Bd7 {[%emt 0:03:02]} 11. Qxc4 $11 {[%emt 0:00:33]} Qc8 {[%emt 0:09:58]} 12. Bd3 {[%emt 0:02:32]} O-O {[%emt 0:04:08]} 13. O-O {[%emt 0:09:01]} Bg4 {[%emt 0:10:29]} 14. Rfe1 {[%emt 0:01:20]} Bxf3 {[%emt 0:10:32]} 15. gxf3 {[%emt 0:00:12]} Kh7 {[%emt 0:04:27]} 16. Re3 {[%emt 0:04:10]} Nd7 {[%emt 0:04:52]} 17. f4 {[%emt 0:02:25]} Nb6 {[%emt 0:04:45]} 18. Qe4 {[%emt 0:00:33]} Rd8 {[%emt 0:01:46]} 19. Rg3 {[%emt 0:04:05]} Qd7 {[%emt 0:07:04]} 20. e6 {[%emt 0:03:56]} f5 {[%emt 0:03:23]} 21. Qg2 {[%emt 0:04:09]} Qe8 {[%emt 0:01:57]} 22. Bxf5 {[%emt 0:02:23]} gxf5 {[%emt 0:00:45]} 23. Rxg7+ {[%emt 0:00:08]} Kh8 {[%emt 0:00:06]} 24. Kh1 {[%emt 0:01:29]} Nxd5 {[%emt 0:08:26]} 25. Nxd5 {[%emt 0:01:00]} Rxd5 {[%emt 0:00:28]} 26. Qxd5 {[%emt 0:00:48]} Kxg7 {[%emt 0:00:28]} 27. Rg1+ {[%emt 0:00:19]} Kh7 {[%emt 0:00:56]} 28. Qxf5+ {[%emt 0:00:06]} Kh8 {[%emt 0:00:05]} 29. Qe5+ {[%emt 0:00:05]} Kh7 {[%emt 0:00:06]} 30. Qg7# {[%emt 0:00:04]} 1-0

[Event "CZE-ch Youth B14 2022"]
[Site "Luhacovice"]
[Date "2022.03.13"]
[Round "2.7"]
[White "Setina, Vaclav"]
[Black "Vysinsky, Otakar"]
[Result "1-0"]
[ECO "C42"]
[WhiteElo "1881"]
[BlackElo "1534"]
[Annotator "NA"]
[PlyCount "177"]
[EventDate "2022.03.12"]
[EventType "swiss"]
[EventCountry "CZE"]
[SourceTitle "playchess.com"]
[Source "ChessBase"]
[SourceQuality "1"]
[TimeControl "40/5400+30:1800+30"]

1. e4 {[%emt 0:00:30]} e5 {[%emt 0:00:06]} 2. Nf3 {[%emt 0:00:00]} Nf6 {[%emt 0:00:07]} 3. Nxe5 {[%emt 0:00:03]} d6 {[%emt 0:00:10]} 4. Nf3 {[%emt 0:00:15]} Nxe4 {[%emt 0:00:06]} 5. Bd3 {[%emt 0:00:43]} Nc5 {[%emt 0:04:49]} (5... Nf6 $11 {deserves consideration.}) 6. Be2 $1 {[%emt 0:00:39]} d5 {[%emt 0:02:07]} 7. O-O {[%emt 0:00:58]} (7. d4 $5 {[%cal Rd4c5]} Ne4 8. O-O $14) 7... Bd6 {[%emt 0:02:14]} 8. d4 {[%emt 0:00:27]} Ne4 {[%emt 0:01:01]} 9. c4 {[%emt 0:00:45]} c6 {[%emt 0:00:34]} 10. Nc3 {[%emt 0:00:19]} O-O {[%emt 0:02:05]} 11. cxd5 {[%emt 0:02:58]} Nxc3 {[%emt 0:01:00]} 12. bxc3 {[%emt 0:00:01]} cxd5 {[%emt 0:00:22]} 13. Bd3 {[%emt 0:06:00]} Bg4 {[%emt 0:06:51] 13...Nd7 is the recent fashion.} 14. Rb1 {[%emt 0:06:52]} b6 {[%emt 0:06:56]} 15. Bc2 {[%emt 0:12:34]} Bh5 {[%emt 0:07:22] [#]} 16. c4 $146 {[%emt 0:00:22]} ({Predecessor:} 16. Re1 Nc6 17. Bf5 Qf6 18. Qd3 Bg6 19. Bxg6 Qxg6 20. Qxg6 hxg6 21. Rb5 Ne7 22. a4 Rfc8 23. Bd2 f6 24. g3 {0-1 (75) Hunt,H (2330)-Stefanova,A (2410) London 1997}) 16... Qc7 {[%emt 0:05:00]} 17. Bxh7+ {[%emt 0:14:43]} Kxh7 {[%emt 0:03:51]} 18. Ng5+ {[%emt 0:00:13]} Kg6 {[%emt 0:00:13]} 19. Qd3+ {[%emt 0:00:09]} f5 {[%emt 0:08:19]} 20. Ne6 {[%emt 0:01:05]} Qc8 {[%emt 0:12:44]} 21. Nxf8+ {[%emt 0:00:29]} Qxf8 {[%emt 0:01:32]} 22. c5 {[%emt 0:01:46]} Bc7 {[%emt 0:03:33]} 23. Qe3 {[%emt 0:00:21]} Qf7 {[%emt 0:03:07]} 24. Re1 {[%emt 0:02:08]} Kh7 {[%emt 0:04:33]} 25. Ba3 {[%emt 0:03:50]} Nc6 {[%emt 0:02:09]} 26. Qc3 {[%emt 0:03:58]} Rc8 {[%emt 0:03:48]} 27. Rbc1 {[%emt 0:02:45]} b5 {[%emt 0:02:13]} 28. Qd3 {[%emt 0:05:12]} a6 {[%emt 0:01:40]} 29. Bb2 {[%emt 0:01:52]} Rb8 {[%emt 0:05:07]} 30. Bc3 {[%emt 0:05:01]} Bg6 {[%emt 0:03:02]} 31. a4 {[%emt 0:00:44]} f4 {[%emt 0:01:45]} 32. Qh3+ {[%emt 0:00:23]} Kg8 {[%emt 0:00:02]} 33. axb5 {[%emt 0:00:02]} axb5 {[%emt 0:01:32]} 34. Ra1 {[%emt 0:01:12]} b4 {[%emt 0:00:57]} 35. Bb2 {[%emt 0:00:20]} Bf5 {[%emt 0:01:09]} 36. Qf3 {[%emt 0:01:31]} Be4 {[%emt 0:01:31]} 37. Qg4 {[%emt 0:00:45]} Bf5 {[%emt 0:02:40]} 38. Qe2 {[%emt 0:00:30]} Bd7 {[%emt 0:01:00]} 39. Reb1 {[%emt 0:04:46]} Na5 {[%emt 0:01:39]} 40. Bc1 {[%emt 0:01:34]} Bb5 {[%emt 0:00:56]} 41. Qf3 {[%emt 0:39:43]} Nc6 {[%emt 0:30:35]} 42. Bb2 {[%emt 0:04:14]} Re8 {[%emt 0:00:00]} 43. Re1 {[%emt 0:00:00]} Rxe1+ {[%emt 0:00:00]} 44. Rxe1 {[%emt 0:00:00]} Na5 {[%emt 0:00:00]} 45. Ra1 {[%emt 0:00:00]} Qe6 {[%emt 0:00:00]} 46. h3 {[%emt 0:00:00]} Be2 {[%emt 0:00:00]} 47. Re1 {[%emt 0:00:00]} Bxf3 {[%emt 0:00:00]} 48. Rxe6 {[%emt 0:00:00]} Bh5 {[%emt 0:00:00]} 49. Re7 {[%emt 0:00:00]} Bb8 {[%emt 0:00:00]} 50. Rd7 {[%emt 0:00:00]} Nc6 {[%emt 0:00:00]} 51. Rxd5 {[%emt 0:00:00]} Bf7 {[%emt 0:00:00]} 52. Rg5 {[%emt 0:00:00]} Ne7 {[%emt 0:00:00]} 53. d5 {[%emt 0:04:49]} Bxd5 {[%emt 0:00:00]} 54. Bxg7 {[%emt 0:00:55]} Kf7 {[%emt 0:00:44]} 55. h4 {[%emt 0:00:49]} Be4 {[%emt 0:03:02]} 56. h5 {[%emt 0:01:37]} b3 {[%emt 0:02:09]} 57. h6 {[%emt 0:00:37]} (57. Bb2 $14 Ke6 58. Rg7) 57... Bh7 {[%emt 0:00:26]} 58. Bb2 {[%emt 0:02:53]} Nf5 {[%emt 0:00:15]} 59. c6 {[%emt 0:00:30]} Bc7 {[%emt 0:00:41]} 60. g4 {[%emt 0:00:38]} fxg3 {[%emt 0:00:11]} 61. fxg3 {[%emt 0:00:08]} Bd8 {[%emt 0:02:00]} 62. Rg4 {[%emt 0:01:27]} Bb6+ {[%emt 0:00:38]} 63. Kh2 {[%emt 0:00:31]} Bc7 {[%emt 0:00:44]} 64. Kh3 {[%emt 0:00:31]} Ke6 {[%emt 0:00:29]} 65. Rb4 {[%emt 0:02:57]} Nxg3 {[%emt 0:00:41]} 66. Rxb3 {[%emt 0:00:58]} Nf5 {[%emt 0:00:30]} 67. Rb7 {[%emt 0:00:13]} Nxh6 {[%emt 0:00:30]} 68. Rxc7 {[%emt 0:00:25]} Bf5+ {[%emt 0:00:08]} 69. Kg3 {[%emt 0:00:44]} Kd6 {[%emt 0:00:44]} 70. Ra7 {[%emt 0:00:13]} Bc8 {[%emt 0:00:34]} 71. c7 {[%emt 0:00:34]} Nf5+ {[%emt 0:00:18]} 72. Kf4 {[%emt 0:00:03]} Kc6 {[%emt 0:00:47]} 73. Be5 {[%emt 0:00:34]} Ne7 {[%emt 0:00:30]} 74. Ke4 {[%emt 0:00:42]} Kd7 {[%emt 0:00:28]} 75. Ra1 {[%emt 0:00:29]} Bb7+ {[%emt 0:00:19]} 76. Kd3 {[%emt 0:00:49]} Nc6 {[%emt 0:00:25]} 77. Bg3 {[%emt 0:01:00]} Nb4+ {[%emt 0:00:35]} 78. Kc4 $18 {[%emt 0:00:19]} Nc6 {[%emt 0:00:39]} 79. Kc5 {[%emt 0:00:19]} Kc8 {[%emt 0:00:35]} 80. Rh1 {[%emt 0:01:01]} Ne7 {[%emt 0:00:29]} 81. Rh8+ {[%emt 0:00:11]} Kd7 {[%emt 0:00:20]} 82. Rd8+ {[%emt 0:00:20]} Ke6 {[%emt 0:00:17]} 83. Kb6 {[%emt 0:01:02]} Bc8 {[%emt 0:00:27]} 84. Bh4 {[%emt 0:00:57]} Nd5+ {[%emt 0:00:36]} 85. Kc6 {[%emt 0:00:22]} Nb4+ {[%emt 0:00:33]} 86. Kc5 {[%emt 0:00:36]} Na6+ {[%emt 0:00:35]} 87. Kb6 {[%emt 0:00:05]} Nxc7 {[%emt 0:00:27]} 88. Kxc7 {[%emt 0:00:01]} Ba6 {[%emt 0:00:16]} 89. Rd6+ {[%emt 0:00:04]} 1-0

[Event "CZE-ch Youth B14 2022"]
[Site "Luhacovice"]
[Date "2022.03.13"]
[Round "2.8"]
[White "Jasso, Matej"]
[Black "Hozda, Max"]
[Result "1-0"]
[ECO "B12"]
[WhiteElo "1726"]
[BlackElo "1901"]
[Annotator "NA"]
[PlyCount "64"]
[EventDate "2022.03.12"]
[EventType "swiss"]
[EventCountry "CZE"]
[SourceTitle "playchess.com"]
[Source "ChessBase"]
[SourceQuality "1"]
[TimeControl "40/5400+30:1800+30"]

1. e4 {[%emt 0:00:06]} c6 {[%emt 0:00:07]} 2. d4 {[%emt 0:00:09]} d5 {[%emt 0:00:04]} 3. f3 {[%emt 0:00:05]} e6 {[%emt 0:00:06]} 4. Nc3 {[%emt 0:00:28]} Bb4 {[%emt 0:00:07]} 5. exd5 {[%emt 0:03:03]} exd5 {[%emt 0:15:53]} 6. Be3 {[%emt 0:02:04]} Bf5 {[%emt 0:00:47]} 7. Bd3 {[%emt 0:02:19]} Bg6 {[%emt 0:01:45]} 8. Nge2 {[%emt 0:01:29]} Nf6 {[%emt 0:02:56]} 9. Qd2 {[%emt 0:01:25]} Nbd7 $11 {[%emt 0:01:54]} 10. h4 {[%emt 0:05:20]} Qc7 {[%emt 0:04:35]} 11. g4 {[%emt 0:07:16]} O-O-O {[%emt 0:05:15]} 12. O-O-O {[%emt 0:02:02]} Rde8 {[%emt 0:06:39]} 13. g5 {[%emt 0:12:43]} Nh5 {[%emt 0:02:55]} 14. a3 {[%emt 0:03:54]} Bd6 {[%emt 0:05:51]} 15. Rhf1 {[%emt 0:10:54]} Ng3 16. Nxg3 Bxd3 {[%emt 0:08:20]} 17. cxd3 {[%emt 0:01:18]} Bxg3 {[%emt 0:01:05]} 18. f4 {[%emt 0:00:53]} h6 {[%emt 0:09:14]} 19. Rf3 {[%emt 0:06:04]} Bxh4 {[%emt 0:01:17]} 20. Rh1 {[%emt 0:03:53]} hxg5 {[%emt 0:01:51]} 21. fxg5 {[%emt 0:02:47]} f6 {[%emt 0:08:00]} 22. Bf4 {[%emt 0:04:39]} Qb6 {[%emt 0:03:58]} 23. Na4 {[%emt 0:12:44]} Qxd4 {[%emt 0:04:26]} 24. Qa5 {[%emt 0:00:41]} Ne5 {[%emt 0:00:43]} 25. Bxe5 {[%emt 0:01:11]} Rxe5 {[%emt 0:00:50]} 26. gxf6 {[%emt 0:03:20]} gxf6 {[%emt 0:05:33]} 27. Rhf1 {[%emt 0:03:26]} Bg5+ {[%emt 0:00:51]} 28. Kb1 {[%emt 0:00:29]} Re2 {[%emt 0:01:08]} 29. Nc3 {[%emt 0:05:24]} Rd2 {[%emt 0:01:33]} 30. Re1 {[%emt 0:01:21]} f5 {[%emt 0:04:09]} 31. Ka1 {[%emt 0:01:46]} f4 {[%emt 0:03:31]} 32. Rb1 {[%emt 0:01:28]} Rdh2 {[%emt 0:00:00]} 1-0